Workbook

Sheet Titullapa
I4: Ja ir vēlēšanās izprintēt veidlapu ar komentāriem, tad nepieciešams veikt sekojošas darbības:
I6: "File" - "Print" - nomainīt lapas novietojumu uz "Landscape orientation" - tālāk "Page Setup" - izvēlas sadaļu "Sheet" un lodziņā pie "Comments" norāda "As displayed on sheet"- (ja vēlas palielināt materiāla izmēru, tad sadaļā "Page" pie "Scaling" jāpalielina izmērs uz nepieciešamo)- tālāk "OK" un "Print"
A9: Eiropas Savienības Eiropas Lauksaimniecības fonda lauku attīstībai (ELFLA)
A10: Atklāta projektu iesniegumu konkursa
A11: Latvijas Lauku attīstības programmas 2014.–2020.gadam
A12: apakšpasākuma 19.2. „Darbības īstenošana saskaņā ar sabiedrības virzītas vietējās attīstības stratēģiju” aktivitātes 19.2.2. „Vietas potenciāla attīstības iniciatīvas” projekta iesniegums
A13: projekta iesniegums
C15: Attiecināmā sabiedrības virzītas vietējās attīstības stratēģijas rīcība
C16: Vietējā rīcības grupa | E16: Biedrība "Daugavas partnerība"
C17: Pretendents
C18: Projekta iesniedzēja reģ. Nr./ personas kods
C19: Klienta numurs
C20: Adrese korespondencei (adrese, pasta indekss)
C21: Projekta īstenošanas vieta (adrese, pasta indekss)
C22: Projekta vadītājs
C23: Kontakttālruņa numurs, e-pasta adrese
C25: Projekta nosaukums | E25: Sabiedriskā centra izveide
C26: Projekta Nr.

Sheet B. Info par uzn (hidden)
A1: B. INFORMĀCIJA PAR ATBALSTA PRETENDENTU UZ PROJEKTA IESNIEGUMA IESNIEGŠANAS MĒNEŠA PIRMO DATUMU:
A2: B.1. Darbības apraksts
A3: Pašreizējās darbības apraksts
A24: B.2. Atbalsta pretendentu raksturojošie radītāji
A25: Iedzīvotāju skaits, kuriem ir pieejami esošie pakalpojumi, projekta īstenošanas vietā (skaits vai neattiecas)
A26: Esošo publisko intereneta punktu pieejamība (objektu skaits, kur ir publiski pieejami interneta resursi; skaits vai neattiecas)
A27: Cilvēku skaits, kurus var vienlaicīgi apkalpot esošajos publisko internetu punktos (skaits vai neattiecas)
A28: Pašvaldības valdījumā esošo saieta namu, brīvā laika pavadīšanas, sporta un kultūras objektu skaits (skaits vai neattiecas)
A29: Pašvaldības valdījumā esošo saieta namu, brīvā laika pavadīšanas, sporta un kultūras objektu platība, kv.m. (vai neattiecas)
A30: Pašvaldības ceļu garums, km (vai neattiecas)
A31: Esošo energoapgādes sistēmu saražotā siltumenerģija, GWh (vai neattiecas)
A32: Mājsaimniecības lietotāju skaits, kuri pērk un izlieto siltumenerģiju savā mājsaimniecībā pašu vajadzībām (skaits vai neattiecas)
A33: B.3. Teritorijas attīstības indekss un rangs pašvaldību grupai
A34: Nr. | B34: Administratīvo teritoriju un teritoriālo vienību klasifikatora kods | G34: Rajons | I34: Pagasts, novads | L34: Teritorijas attīstības indekss | M34: Rangs | N34: Grupa
A36: B.4. Pašvaldības izveidošanas datums
A37: Nr. | B37: Nosaukums | G37: Izveidošanās laiks
A38: 1 | G38: līdz 2006. Gada 1. jūlijam
A39: 2 | G39: pēc 2006. Gada 1. jūlijam
B40: Vietējās pašvaldības administratīvajā teritorijā apvienotās pašvaldības pēc 2006.gada 1.jūlija
A41: 2.1.
A42: 2.2.
A43: 2.3.
A44: 2.4.
A45: 2.5.
A46: 2.6.
A47: B.5. Atbalsta pretendenta saņemtais finansējums no Eiropas Savienības fondiem un valsts subsidētajiem investīciju projektiem
A48: Līdz šī projekta iesnieguma iesniegšanas brīdim, esmu saņēmis finansējumu no Eiropas Savienības fondiem un valsts subsidētajiem projektiem:
A49: Jā
A50: Nē
A51: B.5.1. Realizētie projekti (SAPARD, ELVGF, ELFLA , ERAF, valsts subsidētie un pašvaldības finansētie projekti, u.c.) aizpilda, ja ir saņemts finansējums:
A52: Nr.p.k. | B52: Fonda nosaukums, atbalsta institūcijas nosaukums | E52: Projekta nosaukums un projekta Nr. | H52: Projekta ieviešanas laiks (mm/gggg) – (mm/gggg) | J52: Publiskais finansējums (Ls) | L52: Vai projekta iesniegums ir saistīts ar citu realizēto projektu (Jā; Nē) | M52: Saistītā projekta saturiskā saistība
A53: ES finansētie projekti
A57: Citi projekti (pašvaldības finansētie, valsts subsidētie projekti u.tml.)
A61: B.6. Atbalsta pretendenta iesniegtie projekta iesniegumi Eiropas Savienības fondos, valsts subsidētajās un pašvaldības finansētajās programmās (informācija par projektiem, kuri vēl nav realizēti)
A62: Līdz šī projekta iesnieguma iesniegšanas brīdim, esmu iesniedzis projekta iesniegumu atbalsta saņemšanai no Eiropas Savienības fondiem, valsts subsidētajiem un pašvaldības finansētajiem projektiem? | M62: Jā
M63: Nē
A64: B.6.1. Atbalsta pasākumi, kuru ietvaros iesniegti projekta iesniegumi vērtēšanai
A65: Nr.p.k. | B65: Fonda nosaukums, atbalsta institūcijas nosaukums | D65: Projekta nosaukums un projekta Nr. | F65: Projekta ieviešanas stadija ( projekts pašlaik tiek ieviests; projekts iesniegts vērtēšanai) | H65: Projekta ieviešanas laiks (mm/gggg) – (mm/gggg) | J65: Attiecināmo izmaksu summa (Ls) | L65: Publiskais finansējums (Ls) | M65: Vai projekta iesniegums ir saistīts ar citu vērtēšanai iesniegto projekta iesniegumu (Jā; Nē) | N65: Saistītā projekta saturiskā saistība
A66: ES finansētie projekti
A70: Citi projekti (pašvaldības finansētie, valsts subsidētie projekti u.tml.)

Sheet A.Informācija par pretendentu
A1: A. INFORMĀCIJA PAR PRETENDENTU PROJEKTA IESNIEGUMA IESNIEGŠANAS MĒNEŠA PIRMAJĀ DATUMĀ
A2: A.1. Darbības apraksts
A3: Pašreizējās darbības apraksts
A4: Atbalsta pretendentam jāsagatavo īss pašreizējās darbības apraksts, tajā iekļaujot šādu informāciju: • Atbalsta pretendenta vēstures apraksts brīvā formā • Atbalsta pretendenta pamatdarbības virzieni, to īss apraksts • Galvenās atbalsta pretendenta šā brīža darbības • Atbalsta pretendenta īstermiņa un ilgtermiņa mērķi: - īstermiņa mērķi ir atbalsta pretendenta mērķi laika periodam, kas nav ilgāks par vienu gadu; - ilgtermiņa mērķi ir atbalsta pretendenta mērķi laika periodam, kas ir ilgāks par vienu gadu • Pieredze līdzīgu projektu vadīšanā
A14: A.2. Pretendenta saņemtais publiskais finansējums un (vai) iesniegtie projektu iesniegumi citās iestādēs Eiropas Savienības fondu (ERAF u.c.) un valsts un pašvaldības finansētajos investīciju pasākumos, ja šis finansējums ir saistīts ar projektā plānoto investīciju.
A15: Līdz šī projekta iesnieguma iesniegšanas brīdim pretendents ir saņēmis publisko finansējumu un (vai) ir iesniedzis projekta iesniegumu par citiem Eiropas Savienības fondu un valsts un pašvaldības finansētajiem investīciju pasākumiem, un šis finansējums ir saistīts ar projektā plānoto investīciju. | H15: Jā
H16: Nē
A18: A.2.1. Ja atbilde ir "Jā", lūdzu, sniegt informāciju par projektiem
A19: Nr.p.k. | B19: Fonda nosaukums, atbalsta institūcijas nosaukums | C19: Projekta nosaukums un projekta Nr. | D19: Projekta īstenošanas stadija (saņemts finansējums; projekts pašlaik tiek īstenots; projekts iesniegts vērtēšanai) | E19: Projekta īstenošanas laiks (mm/gggg) līdz (mm/gggg) | F19: Attiecināmo izmaksu summa (EUR) | G19: Publiskais finan-sējums (EUR) | H19: Saistītā projekta saturiskā saistība
A20: Eiropas Savienības finansētie projekti
A24: Citi projekti (valsts un pašvaldības finansētie projekti u.tml.)
A29: A.3. Pretendenta pamatlīdzekļi*
A30: Pamatlīdzekļi
A31: Nosaukums, tehnikas un iekārtas marka vai modelis | E31: Īpašumā, skaits | F31: Nomā esošās, skaits | G31: Izlaides vai izveidošanas gads | H31: Jauda, ietilpība/ mērvienība | I31: Ja tehnika vai iekārta tiks papildināta vai aizstāta, atzīmēt konkrēto
A32: Ēkas un būves | I32: X
A38: Tehnika un iekārtas
A44: * Ja pretendenta īpašumā vai nomā esošo pamatlīdzekļu skaits ir ļoti liels, projekta iesnieguma pielikumā iespējams pievienot atsevišķu pamatlīdzekļu sarakstu. Ja pretendents ir vietējā pašvaldība, tā sniedz informāciju tikai par ēkām un būvēm, tehniku un iekārtām, kam ir saistība ar projektu.

Sheet B.Projekts
A1: B. INFORMĀCIJA PAR PROJEKTU
A2: B.1.Darbības un to ieguldījums LAP mērķa virzienos
A3: Darbība | K3: Mērķa virziens
A4: A – Vietējās teritorijas, tostarp dabas un kultūras objektu, sakārtošana, lai uzlabotu pakalpojumu pieejamību, kvalitāti un sasniedzamību | K4: 6B*
A5: B – Sabiedrisko aktivitāšu (tostarp apmācības un interešu klubu, sociālās aprūpes vietu, kultūras, vides aizsardzības, sporta un citu brīvā laika pavadīšanas aktivitāšu) dažādošana | K5: 6B*
A6: * LAP mērķa virziens „Sekmēt vietējo attīstību lauku apvidos”.
A8: B.2. Projekta ietekme uz klimata pārmaiņām
A9: Projekta īstenošana sekmē mērķu sasniegšanu saistībā ar klimata pārmaiņām | K9: Jā
K10: Nē
A12: B.2.1. Ja atbilde ir „Jā”, lūdzu, aprakstīt, kādā veidā
A13: Raksturo projekta ietekmi uz klimata pārmaiņām. Jomas, kuras projekta īstenošanas rezultātā sekmēs mērķu sasniegšanu saistībā ar klimatu pārmaiņām, minētas šīs veidlapas 1. pielikumā.
A16: B.3. Projekta īstenošanas radītie jauninājumi
A17: Vai projekta īstenošana ieviesīs jauninājumus sabiedrības virzītas vietējās attīstības stratēģiju īstenošanas teritorijā? | K17: Jā
K18: Nē
A20: B.3.1. Ja atbilde ir „Jā”, lūdzu, aprakstīt, kādus jauninājumus
A24: B.4. Pēc projekta īstenošanas sasniedzamie rādītāji:
A25: Nr.p.k | B25: Rezultātu indikatori - atbilstošie– vietējās rīcības grupas sabiedrības virzītā vietējā attīstības stratēģijā minētie sasniedzamie rādītāji | H25: Pirms projekta iesnieguma iesniegšanas | J25: Sagaidāmā vērtība pēc projekta īstenošanas, apraksts (ja nepieciešams)
H26: Mērvienība | I26: Vērtība
A31: B.5. Projekta mērķis:
A32: Šeit jānorāda atbalsta pretendenta individuālais projekta mērķis, kas ir konkrēts, izmērāms, reāli sasniedzams noteiktā laikā. Tas ir galvenais uzdevums, kas sniedz priekšstatu par to, ko atbalsta pretendents vēlas paveikt projekta laikā un kā sasniegt projekta rezultātu. Projekta mērķim ir jābūt uzrakstītam īsi un konkrēti, paskaidrojot, ko ir plānots sasniegt, realizējot šo projektu. Projekta mērķim jāveicina MK noteikumu Nr.590 2.2. apakšpunktā minētā mērķa un SVVA stratēģijā noteiktā mērķa sasniegšanu.
A37: B.6. Projekta apraksts
A38: B.6.1. Projekta apraksts un tā nepieciešamības pamatojums (tostarp darbību, investīciju apraksts un nepieciešamības pamatojums, tā ilgtspējas apraksts)
A39: Atbalsta pretendents sniedz informāciju par projekta priekšvēsturi, vispārīgu aprakstu par projektu un pamato projekta atbilstību sabiedriskā labuma projekta statusam. Skaidri apraksta galvenās problēmas, ko projektam ir jāatrisina, un kā projekts sniegs ieguldījumu problēmas atrisināšanā. Apraksta projektā plānotās aktivitātes un norāda, kā tieši katra attiecināmajās izmaksās iekļautā pozīcija ir saistīta un sekmē projekta mērķa sasniegšanu. Projekta ilgtspējas apraksts. Projekta ilgtspēju var ietekmēt dažādi faktori, būtiskākie no tiem ir: • institucionālā darba un vadības kvalitāte – projekta īstenotāja rīcībā ir nepieciešamās struktūras un personālresursi, lai turpinātu īstenot projekta aktivitātes ilglaicīgi; • ekonomiskie un finanšu aspekti - projekta īstenotāja rīcībā ir nepieciešamie finanšu resursi, lai turpinātu īstenot projekta aktivitātes ilglaicīgi.
A40: B.6.2. Projekta īstenošanas laika grafiks
A41: Norāda termiņus, kādos tiks īstenotas projektā plānotās aktivitātes, ievērojot projekta uzsākšanas un īstenošanas termiņus. Projekta uzsākšanas termiņš - Atbalsta pretendents saņem Dienesta lēmumu aptuveni 4 mēnešu laikā no VRG izsludinātās kārtas noslēgšanās datuma (ja projekta iesnieguma izvērtēšanai nepieciešams papildu laiks faktu pārbaudei, lēmuma pieņemšanas termiņš var tikt pagarināts). Atbalsta saņēmējs projektu sāk īstenot sešu mēnešu laikā pēc dienas, kad stājies spēkā lēmums par projekta iesnieguma apstiprināšanu. Ja projektā paredzēta būvju būvniecība, pārbūve, ierīkošana, novietošana vai atjaunošana, atbalsta saņēmējs projektu sāk īstenot deviņu mēnešu laikā pēc lēmuma par projekta apstiprināšanu spēkā stāšanās. Projekta īstenošanas termiņš: Ja tiek veikta būvniecība, teritorijas labiekārtošana – 2 gadi no Lauku atbalsta dienesta lēmuma pieņemšanas par projekta iesnieguma apstiprināšanu; Ja projektu īsteno Noteikumu Nr.590 5.2.2. apakšpunktā minētajā darbībā "Sabiedrisko aktivitāšu (tostarp apmācību un interešu klubu, sociālās aprūpes vietu, kultūras, vides aizsardzības, sporta un citu brīvā laika pavadīšanas veidu) dažādošanai" un projektā paredzēta attiecināmo izmaksu pozīcija “Ar projektu saistītā personāla atalgojuma un darbības nodrošināšana” izmaksas – 2 gadi no Lauku atbalsta dienesta lēmuma pieņemšanas par projekta iesnieguma apstiprināšanu; Pārējiem projektiem projektu īstenošanas termiņš ir 1 gads no Lauku atbalsta dienesta lēmuma pieņemšanas par projekta iesnieguma apstiprināšanu.
A42: B.6.3. Projekta finansēšanas apraksts (finanšu līdzekļu avoti, projekta vadībai nepieciešamie resursi)
A43: Atbalsta pretendents detalizēti apraksta, kā veidojas projekta realizācijai nepieciešamais finansējums un kādi ir finansēšanas avoti. Atbalsta pretendentam ir jābūt pieejamiem finansējuma līdzekļiem, lai nodrošinātu projekta īstenošanas nepārtrauktību (norāda, vai būs paša līdzekļi, aizņēmums). Ja atbalsta pretendents ir biedrība, nodibinājums vai reliģiska organizācija, projekta īstenošanai var sniegt rēķinu priekšapmaksas pieprasījumu. Rēķinu priekšapmaksas pieprasījuma gadījumā Dienests veic priekšapmaksu, pamatojoties uz iesniegtiem rēķiniem, publiskā finansējuma apmērā.
A44: B.6.4.Projekta īstenošanas joma
A45: Sports
A46: Kultūra
A47: Sociālā aprūpe
A48: Interešu apmācību klubi
A49: Vides aizsardzība
A50: Teritorijas labiekārtošana
A51: Reliģija, baznīcas
A52: Mācības
A53: Cita (norāda, kāda)
A55: “B.6.5. Projekta īstenošanas darbības virziens (attiecas, ja projektā īsteno noteikumu 51. apakšpunktā minēto darbību)
A56: Projekts tiks īstenots šādā nozarē
A57: NACE 2. red. klasifikācijas 4 zīmju ciparu kods | J57: 55.20
A58: NACE 2. red. klasifikācijas nosaukums (atbilstoši norādītajam kodam)” | J58: Izmitināšana viesu mājās un cita veida īslaicīga apmešanās vietās
A60: B.7. Projekta īstenošanas vieta
A61: Pilsēta
A62: Novads, pagasts
A63: Īstenošanas adrese
A64: Projekta īstenošanas vietas kadastra numurs:
A65: zemei (ja notiek būvniecība, būves pārbūve, teritorijas labiekārtošana, tiek uzstādītas stacionārās iekārtas u.c.)
A66: Būvēm, kurās tiek uzstādītas stacionārās iekārtas vai kuras tiek pārbūvētas, ierīkotas vai atjaunotas u.c.
A67: Pārvietojamai tehnikai un citiem pamatlīdzekļiem norāda to atrašanās vietas kadastra numuru
A69: B.8. Projekta laikā plānots iegādāties šādus pamatlīdzekļus
A70: Nr. | B70: Nosaukums, modelis vai marka | H70: Skaits | I70: Ja pamatlīdzeklis papildina vai aizstāj esošos pamatlīdzekļus, norādīt pamatlīdzekļa vienības Nr. no A.3. tabulas (ja attiecas) | K70: Jauda, ražība, celtspēja (ietilpība/ mērvienība) | M70: Jauda, ražība, celtspēja % pret aizstājamo vienību vai vienībām (ja piemērojams)
A71: Pamatlīdzeklis, kas aizstās esošos pamatlīdzekļus (jābūt vismaz par 25 % lielākai jaudai, ražībai vai celtspējai)
A74: Pamatlīdzeklis, kas papildina esošos pamatlīdzekļus, kuri ir vecāki par 10 gadiem
A77: Pamatlīdzeklis, kas būtiski mainīs ražošanas vai tehnoloģijas raksturu
A80: Cits (programmnodrošinājums u. c.)
A84: B.9 Projekta iesnieguma kopējās un attiecināmās izmaksas
A85: Izmaksu pozīcijas sadalījumā pa plānotajām projekta darbībām un projekta posmiem | E85: mērvienība (m3/m2/glāb/m/kompl) | F85: Vienību skaits | G85: Kopā izmaksas, EUR | I85: Attiecināmās izmaksas, EUR** | J85: Atbalsta intensitāte, % | K85: Publiskais finansējums, EUR | L85: Privātais finansējums, EUR | M85: Maksājuma pieprasījuma iesniegšanas datums (DD.MM.GGGG.) | N85: Izmaksu atbilstība darbībām (A, B)*
G88: ar PVN | H88: bez PVN
A89: 1 | E89: 2 | F89: 3 | G89: 4 | H89: 5 | I89: 6 | J89: 7 | K89: 8 | L89: 9
A90: 1. Jaunu pamatlīdzekļu iegāde un programmnodrošinājuma iegāde un uzstādīšana
A91: Pamatlīdzeklis "A" | E91: gab | F91: 1 | G91: =H91*121/100 -> 4840 | H91: 4000 | I91: 4840 | J91: 90 | K91: =I91*J91/100 -> 4356 | L91: =I91-K91 -> 484 | M91: 15.09.2016 | N91: B
A92: Pamatlīdzeklis "B" | C92: - | E92: gab | F92: 1 | G92: =H92*121/100 -> 1210 | H92: 1000 | I92: 1210 | J92: 90 | K92: =I92*J92/100 -> 1089 | L92: =I92-K92 -> 121 | M92: 15.09.2016 | N92: B
C93: - | E93: - | F93: - | G93: - | H93: 0 | I93: 0 | J93: 0 | K93: =I93*J93/100 -> 0 | L93: =I93-K93 -> 0
A94: Pamatlīdzekļu iegādes, uzstādīšanas izmaksas, kopā | H94: =SUM(H91:H93) -> 5000 | I94: =SUM(I91:I93) -> 6050 | J94: X | K94: =SUM(K91:K93) -> 5445 | L94: =SUM(L91:L93) -> 605 | M94: X
A95: 2. Būves būvniecības, pārbūves, ierīkošanas, novietošanas, atjaunošanas, restaurācijas un teritorijas labiekārtošanas izmaksas
A96: Būvniecība "C" | C96: - | E96: m2 | F96: 50 | G96: =H96*121/100 -> 3630 | H96: 3000 | I96: 3630 | J96: 90 | K96: =I96*J96/100 -> 3267 | L96: =I96-K96 -> 363 | M96: 15.09.2016 | N96: B
C97: - | E97: - | F97: - | G97: - | H97: - | I97: - | J97: - | K97: - | L97: -
C98: - | E98: - | F98: - | G98: - | H98: - | I98: - | J98: - | K98: - | L98: -
A99: Būves būvniecības, pārbūves, ierīkošanas, novietošanas, atjaunošanas, restaurācijas un teritorijas labiekārtošanas izmaksas, kopā | H99: =SUM(H96:H98) -> 3000 | I99: =SUM(I96:I98) -> 3630 | J99: X | K99: =SUM(K96:K98) -> 3267 | L99: =SUM(L96:L98) -> 363 | M99: X
A100: 3. Būvmateriālu iegāde
C101: - | E101: - | F101: - | G101: - | H101: - | I101: - | J101: - | K101: - | L101: -
C102: - | E102: - | F102: - | G102: - | H102: - | I102: - | J102: - | K102: - | L102: -
C103: - | E103: - | F103: - | G103: - | H103: - | I103: - | J103: - | K103: - | L103: -
A104: Izmaksas būvmateriālu iegādei, kopā | H104: =SUM(H101:H103) -> 0 | I104: =SUM(I101:I103) -> 0 | J104: X | K104: =SUM(K101:K103) -> 0 | L104: =SUM(L101:L103) -> 0 | M104: X
A105: 4. Mācību izmaksas
C106: - | E106: - | F106: - | G106: - | H106: - | I106: - | J106: - | K106: - | L106: -
C107: - | E107: - | F107: - | G107: - | H107: - | I107: - | J107: - | K107: - | L107: -
C108: - | E108: - | F108: - | G108: - | H108: - | I108: - | J108: - | K108: - | L108: -
A109: Mācību izmaksas, kopā | H109: =SUM(H106:H108) -> 0 | I109: =SUM(I106:I108) -> 0 | J109: X | K109: =SUM(K106:K108) -> 0 | L109: =SUM(L106:L108) -> 0 | M109: X
A110: 5.Sabiedrisko attiecību izmaksas, kas nepieciešamas vietas potenciāla un pievilcības veidošanai
B111: - | D111: - | E111: - | F111: -
B112: - | D112: - | E112: - | F112: - | G112: - | H112: - | I112: - | J112: - | K112: - | L112: -
B113: - | D113: - | E113: - | F113: - | G113: - | H113: - | I113: - | J113: - | K113: - | L113: -
A114: Sabiedrisko attiecību izmaksas, kopā | H114: =SUM(H111:H113) -> 0 | I114: =SUM(I111:I113) -> 0 | J114: X | K114: =SUM(K111:K113) -> 0 | L114: =SUM(L111:L113) -> 0 | M114: X
A115: 6. Vispārējās izmaksas
A116: Projekta iesnieguma sagatavošana | B116: - | D116: - | E116: gab | F116: 1 | G116: =400*121/100 -> 484 | H116: 400 | I116: 484 | J116: 90 | K116: =I116*90/100 -> 435.6 | L116: =I116-K116 -> 48.4 | M116: 15.09.2016 | N116: A
B117: - | D117: - | E117: - | F117: - | G117: - | H117: - | I117: - | J117: - | K117: - | L117: - | P117: !!!Lai pārliecinātos, vai netiek pārsniegti % ierobežojumi vispārīgajām izmaksām, personālā atalgojumam un darbības nodrošināšanai, aizpildiet šo tabulu:
B118: - | D118: - | E118: - | F118: - | G118: - | H118: - | I118: - | J118: - | K118: - | L118: -
A119: Vispārējās izmaksas, kopā | H119: =SUM(H116:H118) -> 400 | I119: =SUM(I116:I118) -> 484 | J119: X | K119: =SUM(K116:K118) -> 435.6 | L119: =SUM(L116:L118) -> 48.4 | M119: X
A120: KOPĀ (1. līdz6. sadaļas izmaksas) | H120: =H119+H114+H109+H104+H99+H94 -> 8400 | I120: =I119+I114+I109+I104+I99+I94 -> 10164 | J120: X | K120: =K119+K114+K109+K104+K99+K94 -> 9147.6 | L120: =L119+L114+L109+L104+L99+L94 -> 1016.4 | M120: X | T120: Attiecināmas izmaksas, EUR | U120: %
A121: 7 Personāla atalgojuma un darbības nodrošināšanas izmaksas | P121: 1 | Q121: Jaunu pamatlīdzekļu iegāde un uzstādīšana | T121: =I94 -> 6050
A122: Personāla atalgojums | C122: - | E122: gab | F122: 6 | G122: 1524 | H122: 1524 | I122: 1524 | J122: 90 | K122: =I122*90/100 -> 1371.6 | L122: =I122-K122 -> 152.4 | M122: 15.09.2016 | N122: A | P122: 2 | Q122: Būves būvniecības, pārbūves, ierīkošanas, novietošanas, atjaunošanas un restaurācijas izmaksas | T122: =I99 -> 3630
C123: - | E123: - | F123: - | P123: 3 | Q123: Būvmateriālu iegāde | T123: =I104 -> 0
C124: - | E124: - | F124: - | G124: - | H124: - | I124: - | J124: - | K124: - | L124: - | P124: 4 | Q124: Mācību izmaksas | T124: =I109 -> 0
A125: Personāla atalgojuma un darbības nodrošināšanas izmaksas, kopā | H125: =SUM(H122:H124) -> 1524 | I125: =SUM(I122:I124) -> 1524 | J125: X | K125: =SUM(K122:K124) -> 1371.6 | L125: =SUM(L122:L124) -> 152.4 | M125: X | P125: 5 | Q125: Sabiedrisko attiecību izmaksas | T125: 0 | U125: =(T125*100)/(T121+T122+T123) -> 0
A126: KOPĀ | H126: =H125+H114+H109+H104+H99+H94+H119 -> 9924 | I126: =I125+I114+I109+I104+I99+I94+I119 -> 11688 | J126: X | K126: =K125+K114+K109+K104+K99+K94+K119 -> 10519.2 | L126: =L125+L114+L109+L104+L99+L94+L119 -> 1168.8 | P126: 6 | Q126: Vispārējās izmaksas | T126: =I119 -> 484 | U126: =T126*100/(T121+T122+T123+T124) -> 5
A128: *Atbilstoši B.1. sadaļai | P128: 7 | Q128: Personāla atalgojuma un darbības nodrošināšanas izmaksas | T128: =I125 -> 1524 | U128: =(100*T128)/(T121+T122+T123+T124+T125+T126) -> 14.99409681
A129: ** Attiecināms ir pievienotās vērtības nodoklis, ja nav tiesību to atskaitīt no valsts budžetā maksājamās nodokļa summas kā priekšnodokli normatīvajos aktos par pievienotās vērtības nodokli noteiktajā kārtībā. | Q129: Kopā | T129: =SUM(T119:T128) -> 11688
A131: B.10. Pārējās neattiecināmās izmaksas
A132: Neattiecināmo izmaksu pozīcijas | L132: Summa, EUR
A133: Telpaugu iegāde | L133: 100
A135: KOPĀ
A137: B.11. Rēķinu priekšapmaksas pieprasījums (ja atbalsta pretendents ir biedrība, nodibinājums vai reliģiska organizācija)
A138: Projekta īstenošanai plānots iesniegt rēķinu priekšapmaksas pieprasījumu | K138: Jā
K139: Nē
A141: B.12. Projekta ietekmes uz apkārtējo vidi apraksts
A142: Projekta ietekmes uz apkārtējo vidi apraksts saskaņā ar Latvijas Republikas normatīvajiem aktiem
A143: Noteikumi N.598 1.pielikuma "Atbalsta pretendenta deklarācija" 20. punktā atbalsta pretendents apliecina, ka projekta īstenošanas laikā ievēros normatīvajos aktos noteiktos vides aizsardzības noteikumus un prasības atbilstoši Eiropas Savienības un Latvijas Republikas normatīvajos aktos par ietekmi uz vidi. Raksturo projekta ietekmi uz apkārtējo vidi. Atbalsta pretendentam jānorāda, kādā veidā atbalsta pretendents nodrošinās LR tiesību aktu un Padomes Regulas (EK) Nr. 1305/2013 par atbalstu lauku attīstībai no Eiropas lauksaimniecības fonda lauku attīstībai (ELFLA) prasību izpildi attiecībā uz vides aizsardzību.
A147: B.13 Projekta informācijas un publicitātes pasākumi
A148: Apraksts
A149: Projekta iesniedzējs apraksta darbības (plakātu un informatīvu plākšņu izvietošana, informatīvo materiālu izdošana, publicitātes pasākumu organizēšana u.c.), kas tiks veiktas, lai nodrošinātu informāciju un publicitāti par projekta ieviešanu un sasniegtajiem rezultātiem. Atbalsta pretendentam, plānojot projekta informācijas un publicitātes pasākumus, jāņem vērā Vizuālās identitātes vadlīnijas (2014.-2020. gadam) - http://www.lad.gov.lv/lv/atbalsta-veidi/projekti-un-investicijas/vizualas-identitates-vadlinijas-%282014-2020-gadam%29/
A152: B.14. Papildus informācija, kas sniedzama saskaņā ar sabiedrības virzītu vietējās attīstības stratēģiju
A153: Apraksts

Sheet B.9 piemēri
A1: B.9 Projekta iesnieguma kopējās un attiecināmās izmaksas (piemērs, ja PVN nav attiecināmās izmaksas) | M1: Piemērs Nr.1
A2: Izmaksu pozīcijas sadalījumā pa plānotajām projekta darbībām un projekta posmiem | E2: mērvienība (m3/m2/gab/m/kompl) | F2: Vienību skaits | G2: Kopā izmaksas, EUR | I2: Attiecināmās izmaksas, EUR | J2: Atbalsta intensitāte, % | K2: Publiskais finansējums, EUR | L2: Privātais finansējums, EUR | M2: Maksājuma pieprasījuma iesniegšanas datums (DD.MM.GGGG.) | N2: Izmaksu atbilstība darbībām (A, B)*
G5: ar PVN | H5: bez PVN
A6: 1 | E6: 2 | F6: 3 | G6: 4 | H6: 5 | I6: 6 | J6: 7 | K6: 8 | L6: 9
A7: 1. Jaunu pamatlīdzekļu iegāde un uzstādīšana
A8: Pamatlīdzeklis "A" | E8: gab | F8: 1 | G8: =H8*121/100 -> 4840 | H8: 4000 | I8: 4000 | J8: 90 | K8: =I8*90/100 -> 3600 | L8: =G8-K8 -> 1240 | M8: 15.09.2016 | N8: A
A9: Pamatlīdzeklis "B" | C9: - | E9: gab | F9: 1 | G9: =H9*121/100 -> 1210 | H9: 1000 | I9: 1000 | J9: 90 | K9: =I9*90/100 -> 900 | L9: =G9-K9 -> 310 | M9: 15.09.2016 | N9: A
C10: - | E10: - | F10: - | G10: - | H10: - | I10: - | J10: - | K10: - | L10: -
A11: Pamatlīdzekļu iegādes, uzstādīšanas izmaksas, kopā | G11: =SUM(G8:G10) -> 6050 | H11: =SUM(H8:H10) -> 5000 | I11: =SUM(I8:I10) -> 5000 | J11: X | K11: =SUM(K8:K10) -> 4500 | L11: =SUM(L8:L10) -> 1550 | M11: X
A12: 2. Būves būvniecības, pārbūves, ierīkošanas, novietošanas, atjaunošanas un restaurācijas izmaksas
C13: - | E13: - | F13: - | G13: - | H13: - | I13: - | J13: - | K13: - | L13: -
C14: - | E14: - | F14: - | G14: - | H14: - | I14: - | J14: - | K14: - | L14: -
C15: - | E15: - | F15: - | G15: - | H15: - | I15: - | J15: - | K15: - | L15: -
A16: Būves būvniecības, pārbūves, ierīkošanas, novietošanas, atjaunošanas un restaurācijas izmaksas, kopā | G16: =SUM(G13:G15) -> 0 | H16: =SUM(H13:H15) -> 0 | I16: =SUM(I13:I15) -> 0 | J16: X | K16: =SUM(K13:K15) -> 0 | L16: =SUM(L13:L15) -> 0 | M16: X
A17: 3. Būvmateriālu iegāde
C18: - | E18: - | F18: - | G18: - | H18: - | I18: - | J18: - | K18: - | L18: -
C19: - | E19: - | F19: - | G19: - | H19: - | I19: - | J19: - | K19: - | L19: -
C20: - | E20: - | F20: - | G20: - | H20: - | I20: - | J20: - | K20: - | L20: -
A21: Izmaksas būvmateriālu iegādei, kopā | G21: =SUM(G18:G20) -> 0 | H21: =SUM(H18:H20) -> 0 | I21: =SUM(I18:I20) -> 0 | J21: X | K21: =SUM(K18:K20) -> 0 | L21: =SUM(L18:L20) -> 0 | M21: X
A22: 4. Mācību izmaksas
C23: - | E23: - | F23: - | G23: - | H23: - | I23: - | J23: - | K23: - | L23: -
C24: - | E24: - | F24: - | G24: - | H24: - | I24: - | J24: - | K24: - | L24: -
C25: - | E25: - | F25: - | G25: - | H25: - | I25: - | J25: - | K25: - | L25: -
A26: Mācību izmaksas, kopā | G26: =SUM(G23:G25) -> 0 | H26: =SUM(H23:H25) -> 0 | I26: =SUM(I23:I25) -> 0 | J26: X | K26: =SUM(K23:K25) -> 0 | L26: =SUM(L23:L25) -> 0 | M26: X
A27: 5.Sabiedrisko attiecību izmaksas, kas nepieciešamas vietas potenciāla un pievilcības veidošanai
B28: - | D28: - | E28: - | F28: - | G28: - | H28: - | I28: - | J28: - | K28: - | L28: -
B29: - | D29: - | E29: - | F29: - | G29: - | H29: - | I29: - | J29: - | K29: - | L29: -
B30: - | D30: - | E30: - | F30: - | G30: - | H30: - | I30: - | J30: - | K30: - | L30: -
A31: Sabiedrisko attiecību izmaksas, kopā | G31: =SUM(G28:G30) -> 0 | H31: =SUM(H28:H30) -> 0 | I31: =SUM(I28:I30) -> 0 | J31: X | K31: =SUM(K28:K30) -> 0 | L31: =SUM(L28:L30) -> 0 | M31: X
A32: 6. Vispārējās izmaksas
B33: - | D33: - | E33: - | F33: - | G33: - | H33: - | I33: - | J33: - | K33: - | L33: -
B34: - | D34: - | E34: - | F34: - | G34: - | H34: - | I34: - | J34: - | K34: - | L34: -
B35: - | D35: - | E35: - | F35: - | G35: - | H35: - | I35: - | J35: - | K35: - | L35: -
A36: Vispārējās izmaksas, kopā | G36: =SUM(G33:G35) -> 0 | H36: =SUM(H33:H35) -> 0 | I36: =SUM(I33:I35) -> 0 | J36: X | K36: =SUM(K33:K35) -> 0 | L36: =SUM(L33:L35) -> 0 | M36: X
A37: KOPĀ (1. līdz 6. sadaļas izmaksas) | H37: =H36+H31+H26+H21+H16+H11 -> 5000 | I37: =I36+I31+I26+I21+I16+I11 -> 5000 | J37: X | K37: =K36+K31+K26+K21+K16+K11 -> 4500 | L37: =L36+L31+L26+L21+L16+L11 -> 1550 | M37: X
A38: 7. Personāla atalgojuma un darbības nodrošināšanas izmaksas
K39: - | L39: -
C40: - | E40: - | F40: - | G40: - | H40: - | I40: - | J40: - | K40: - | L40: -
C41: - | E41: - | F41: - | G41: - | H41: - | I41: - | J41: - | K41: - | L41: -
A42: Personāla atalgojuma un darbības nodrošināšanas izmaksas, kopā | G42: =SUM(G39:G41) -> 0 | H42: =SUM(H39:H41) -> 0 | I42: =SUM(I39:I41) -> 0 | J42: X | K42: =SUM(K39:K41) -> 0 | L42: =SUM(L39:L41) -> 0 | M42: X
A43: KOPĀ | H43: =H42+H31+H26+H21+H16+H11+H36 -> 5000 | I43: =I42+I31+I26+I21+I16+I11+I36 -> 5000 | J43: X | K43: =K42+K31+K26+K21+K16+K11+K36 -> 4500 | L43: =L42+L31+L26+L21+L16+L11+L36 -> 1550
A45: *Atbilstoši B.1. sadaļai
A46: B.10. Pārējās neattiecināmās izmaksas
A47: Neattiecināmo izmaksu pozīcijas | L47: Summa, EUR
A48: PVN | L48: 1050.00 EUR
A50: KOPĀ
M53: Piemērs Nr.2
A55: B.9 Projekta iesnieguma kopējās un attiecināmās izmaksas | G55: Rīcībai "A", projekta attiecināmo izmaksu summa sludinājuma noteikta 3000,00EUR
A56: Izmaksu pozīcijas sadalījumā pa plānotajām projekta darbībām un projekta posmiem | E56: mērvienība (m3/m2/gab/m/kompl) | F56: Vienību skaits | G56: Kopā izmaksas, EUR | I56: Attiecināmās izmaksas, EUR | J56: Atbalsta intensitāte, % | K56: Publiskais finansējums, EUR | L56: Privātais finansējums, EUR | M56: Maksājuma pieprasījuma iesniegšanas datums (DD.MM.GGGG.) | N56: Izmaksu atbilstība darbībām (A, B)*
G59: ar PVN | H59: bez PVN
A60: 1 | E60: 2 | F60: 3 | G60: 4 | H60: 5 | I60: 6 | J60: 7 | K60: 8 | L60: 9
A61: 1. Jaunu pamatlīdzekļu iegāde un uzstādīšana
A62: Pamatlīdzeklis "A" | E62: gab | F62: 1 | G62: =H62*121/100 -> 4840 | H62: 4000 | I62: 3000 | J62: 90 | K62: =I62*90/100 -> 2700 | L62: =G62-K62 -> 2140 | M62: 15.09.2016 | N62: A
C64: - | E64: - | F64: - | G64: - | H64: - | I64: - | J64: - | K64: - | L64: -
A65: Pamatlīdzekļu iegādes, uzstādīšanas izmaksas, kopā | G65: =SUM(G62:G64) -> 4840 | H65: =SUM(H62:H64) -> 4000 | I65: =SUM(I62:I64) -> 3000 | J65: X | K65: =SUM(K62:K64) -> 2700 | L65: =SUM(L62:L64) -> 2140 | M65: X
A66: 2. Būves būvniecības, pārbūves, ierīkošanas, novietošanas, atjaunošanas un restaurācijas izmaksas
C67: - | E67: - | F67: - | G67: - | H67: - | I67: - | J67: - | K67: - | L67: -
C68: - | E68: - | F68: - | G68: - | H68: - | I68: - | J68: - | K68: - | L68: -
C69: - | E69: - | F69: - | G69: - | H69: - | I69: - | J69: - | K69: - | L69: -
A70: Būves būvniecības, pārbūves, ierīkošanas, novietošanas, atjaunošanas un restaurācijas izmaksas, kopā | G70: =SUM(G67:G69) -> 0 | H70: =SUM(H67:H69) -> 0 | I70: =SUM(I67:I69) -> 0 | J70: X | K70: =SUM(K67:K69) -> 0 | L70: =SUM(L67:L69) -> 0 | M70: X
A71: 3. Būvmateriālu iegāde
C72: - | E72: - | F72: - | G72: - | H72: - | I72: - | J72: - | K72: - | L72: -
C73: - | E73: - | F73: - | G73: - | H73: - | I73: - | J73: - | K73: - | L73: -
C74: - | E74: - | F74: - | G74: - | H74: - | I74: - | J74: - | K74: - | L74: -
A75: Izmaksas būvmateriālu iegādei, kopā | G75: =SUM(G72:G74) -> 0 | H75: =SUM(H72:H74) -> 0 | I75: =SUM(I72:I74) -> 0 | J75: X | K75: =SUM(K72:K74) -> 0 | L75: =SUM(L72:L74) -> 0 | M75: X
A76: 4. Mācību izmaksas
C77: - | E77: - | F77: - | G77: - | H77: - | I77: - | J77: - | K77: - | L77: -
C78: - | E78: - | F78: - | G78: - | H78: - | I78: - | J78: - | K78: - | L78: -
C79: - | E79: - | F79: - | G79: - | H79: - | I79: - | J79: - | K79: - | L79: -
A80: Mācību izmaksas, kopā | G80: =SUM(G77:G79) -> 0 | H80: =SUM(H77:H79) -> 0 | I80: =SUM(I77:I79) -> 0 | J80: X | K80: =SUM(K77:K79) -> 0 | L80: =SUM(L77:L79) -> 0 | M80: X
A81: 5.Sabiedrisko attiecību izmaksas, kas nepieciešamas vietas potenciāla un pievilcības veidošanai
B82: - | D82: - | E82: - | F82: - | G82: - | H82: - | I82: - | J82: - | K82: - | L82: -
B83: - | D83: - | E83: - | F83: - | G83: - | H83: - | I83: - | J83: - | K83: - | L83: -
B84: - | D84: - | E84: - | F84: - | G84: - | H84: - | I84: - | J84: - | K84: - | L84: -
A85: Sabiedrisko attiecību izmaksas, kopā | G85: =SUM(G82:G84) -> 0 | H85: =SUM(H82:H84) -> 0 | I85: =SUM(I82:I84) -> 0 | J85: X | K85: =SUM(K82:K84) -> 0 | L85: =SUM(L82:L84) -> 0 | M85: X
A86: 6.Vispārējās izmaksas
B87: - | D87: - | E87: - | F87: - | G87: - | H87: - | I87: - | J87: - | K87: - | L87: -
B88: - | D88: - | E88: - | F88: - | G88: - | H88: - | I88: - | J88: - | K88: - | L88: -
B89: - | D89: - | E89: - | F89: - | G89: - | H89: - | I89: - | J89: - | K89: - | L89: -
A90: Vispārējās izmaksas, kopā | G90: =SUM(G87:G89) -> 0 | H90: =SUM(H87:H89) -> 0 | I90: =SUM(I87:I89) -> 0 | J90: X | K90: =SUM(K87:K89) -> 0 | L90: =SUM(L87:L89) -> 0 | M90: X
A91: KOPĀ (1. līdz 6. sadaļas izmaksas) | H91: =H90+H85+H80+H75+H70+H65 -> 4000 | I91: =I90+I85+I80+I75+I70+I65 -> 3000 | J91: X | K91: =K90+K85+K80+K75+K70+K65 -> 2700 | L91: =L90+L85+L80+L75+L70+L65 -> 2140 | M91: X
A92: 7. Personāla atalgojuma un darbības nodrošināšanas izmaksas
K93: - | L93: -
C94: - | E94: - | F94: - | G94: - | H94: - | I94: - | J94: - | K94: - | L94: -
C95: - | E95: - | F95: - | G95: - | H95: - | I95: - | J95: - | K95: - | L95: -
A96: Personāla atalgojuma un darbības nodrošināšanas izmaksas, kopā | G96: =SUM(G93:G95) -> 0 | H96: =SUM(H93:H95) -> 0 | I96: =SUM(I93:I95) -> 0 | J96: X | K96: =SUM(K93:K95) -> 0 | L96: =SUM(L93:L95) -> 0 | M96: X
A97: KOPĀ | H97: =H96+H85+H80+H75+H70+H65+H90 -> 4000 | I97: =I96+I85+I80+I75+I70+I65+I90 -> 3000 | J97: X | K97: =K96+K85+K80+K75+K70+K65+K90 -> 2700 | L97: =L96+L85+L80+L75+L70+L65+L90 -> 2140
A98: *Atbilstoši B.1. sadaļai
A101: B.10 Pārējās neattiecināmās izmaksas
A102: Neattiecināmo izmaksu pozīcijas | L102: Summa, EUR
A103: Pamatlīdzeklis "B" | L103: 1000
A104: PVN | L104: 840
A105: Pamatlīdzeklis"A" | L105: 1000
A106: KOPĀ | L106: =SUM(L103:N105) -> 2840

Sheet c. Pavaddok-ti
A1: C. PAVADDOKUMENTI
A2: C1. | B2: Iesniedzamie dokumenti:
A3: Iesniedzamie dokumenti (ja veidlapu iesniedz saskaņā ar normatīvajos aktos par elektronisko dokumentu noformēšanu noteiktajām prasībām, arī pavaddokumenti iesniedzami atbilstoši minēto normatīvo aktu prasībām) | O3: Aizpilda atbalsta pretendents
O4: Atzīmēt ar X atbilstošo atbildi
O5: Jā | P5: Nē | Q5: Neattiecas
A6: 1. | B6: Projekta iesnieguma pilns komplekts (2 eksemplāros) un tā elektroniskā versija | N6: oriģināli
A7: 2. | B7: Pretendenta deklarācija saskaņā ar normatīvajiem aktiem par valsts un Eiropas Savienības atbalsta piešķiršanu, administrēšanu un uzraudzību lauku un zivsaimniecības attīstībai 2014.–2020. gada plānošanas periodā | N7: oriģināls
A8: 3. | B8: Ja attiecas uz pretendentu – uzskaites veidlapa par saņemto de minimis atbalstu saskaņā ar normatīvajiem aktiem par de minimis atbalsta uzskaites un piešķiršanas kārtību un uzskaites veidlapu paraugiem | N8: oriģināls
A9: 4. | B9: Ilgtermiņa nomas vai patapinājuma līgums (uzrāda oriģinālu), kas noslēgts vismaz uz septiņiem gadiem no projekta iesniegšanas dienas | N9: kopija
A10: 5. | B10: Saskaņojums ar nekustamā īpašuma īpašnieku par atsevišķu labiekārtojuma elementu, stacionāro reklāmas vai informācijas stendu uzstādīšanu vai tādu pamatlīdzekļu novietošanu vai uzglabāšanu, kuri nav stacionāri novietojami, ja vien projektā plānotās darbības neīsteno noteiktā telpā (noslēgts vismaz uz septiņiem gadiem no projekta iesnieguma iesniegšanas dienas) | N10: kopija
A11: 6. | B11: Valsts vides dienesta reģionālās vides pārvaldes izziņa par to, kura piesārņojoša darbība tiks veikta, īstenojot projektu, un kuru atļauju – A vai B kategorijas piesārņojošas darbības atļauju vai C kategorijas piesārņojošas darbības apliecinājumu – pretendentam ir nepieciešams saņemt, ja šī prasība attiecas uz pretendentu saskaņā ar normatīvajiem aktiem par piesārņojošo darbību veikšanu | N11: oriģināli
A12: Gadījumos, kad jāpiemēro iepirkuma procedūra saskaņā ar Publisko iepirkuma likumu1, 2
A13: 7. | B13: Iepirkuma procedūras dokumenti saskaņā ar Publisko iepirkumu likumu | N13: kopijas
A14: 8. | B14: Dokumenti, kas pierāda projektā plānoto preču vai pakalpojumu cenu pamatotību un atbilstību tirgus cenai | N14: kopijas
A15: Gadījumos, kad jāpiemēro Latvijas Republikas normatīvie akti par iepirkuma procedūrām pasūtītāja finansētiem projektiem, iepirkuma procedūru apliecinošie dokumenti1, 3
A16: 9. | B16: Iepirkuma priekšmeta tehniskā specifikācija | N16: oriģināls
A17: 10. | B17: Iepirkuma uzraudzības biroja (turpmāk – IUB) publicēts uzaicinājums | N17: izdruka
A18: 11. | B18: Saņemtie piedāvājumi no iespējamiem piegādātājiem | N18: kopija
A19: 12. | B19: IUB publicētie grozījumi | N19: izdruka
A20: 13. | B20: IUB publicētais gala lēmums | N20: izdruka
A21: 14. | B21: Vērtēšanas ziņojums | N21: oriģināls
A22: 15. | B22: Atbalsta pretendenta apraksts par piedāvājumu salīdzinājumu konkrētajai iegādei un informācija par aptaujātajiem komersantiem, lai apliecinātu noteiktās cenas objektivitāti4 | N22: oriģināls/ kopijas
A23: Jaunas būvniecības, būves pārbūves, būves ierīkošanas, būves novietošanas un būves atjaunošanas projektiem
A24: 16. | B24: lgtermiņa nomas līgums, kas reģistrēts zemesgrāmatā vismaz uz septiņiem gadiem no projekta iesnieguma iesniegšanas dienas, par nekustamo īpašumu, kurā, īstenojot projektu, paredzēta jaunas būves būvniecība, būves pārbūve, būves ierīkošana, būves novietošana, būves restaurācija vai būves atjaunošana, ja īpašums tiek nomāts (var iesniegt arī pirms projekta īstenošanas uzsākšanas) | C24: kopija | N24: kopija
A25: 17. | B25: Būvatļauja ar būvvaldes atzīmi par būvniecības ieceres akceptu, ja iesniegšanas dienā nav apstiprināts tehniskais projekts3, 5 | C25: kopija | N25: kopija
A26: 18. | B26: Paskaidrojuma raksts (apliecinājuma karte) ar būvvaldes atzīmi par būvniecības ieceres akceptu, izstrādāts atbilstoši būvniecību reglamentējošajiem normatīvajiem aktiem un attiecīgās pašvaldības saistošajiem noteikumiem 3, 5 | C26: kopija | N26: kopija
A27: 19. | B27: Sagatavota būvniecības izmaksu tāme, ja atbilstoši plānotajai būvniecības iecerei būvvalde atbalsta pretendentam izsniegusi paskaidrojuma rakstu (apliecinājuma karti)3, 5 | C27: oriģināls | N27: oriģināls
A28: 20. | B28: Būvmateriālu iegādei – būvprojekts vai tā kopija un būvatļauja ar būvvaldes atzīmi par projektēšanas nosacījumu izpildi, ja būvvalde atbilstoši plānotajai būvniecības iecerei nav izsniegusi paskaidrojuma rakstu (apliecinājuma karti)3, 5 | C28: oriģināls/ kopijas | N28: oriģināls/ kopija
A29: 21. | B29: Būvprojekts ar būvatļaujā izdarītu atzīmi par projektēšanas nosacījumu izpildi3, 5 | C29: kopija | N29: kopija
A30: 22. | B30: Papildināta būvatļauja vai papildināts paskaidrojuma raksts (apliecinājuma karte) ar būvvaldes atzīmi par būvdarbu uzsākšanas nosacījumu izpildi 6 | C30: kopija | N30: kopija
A31: Ja pretendents ir biedrība vai nodibinājums
A32: 23. | B32: Valdes apstiprināts lēmums par projekta īstenošanu un visām no tā izrietošajām saistībām, norādot projekta kopējās izmaksas un finansēšanas avotus | C32: oriģināls | N32: oriģināls
A33: Ja pretendents ir vietējā pašvaldība
A34: 24. | B34: Vietējās pašvaldības lēmums par piedalīšanos projektā un projekta īstenošanai nepieciešamā finansējuma apmēru | C34: oriģināls | N34: oriģināls
A35: Citi iesniegtie dokumenti
A36: 25. | B36: Ja projektā tiek radīts jauns pakalpojums vai attīstīts esošs pakalpojums – dokuments, kas pamato projekta īstenošanas rezultāta uzturēšanu projekta uzraudzības periodā | N36: oriģināls
A37: 26. | B37: Pašnovērtējums par projekta atbilstību vietējās attīstības stratēģijā attiecīgajai rīcībai noteiktajiem projektu vērtēšanas kritērijiem | N37: oriģināls
A38: 27
A39: Piezīmes.
A40: 1 Iepirkuma dokumentus, kas saistīti ar būvniecības izmaksām, var iesniegt kopā ar projekta iesniegumu vai sešu mēnešu laikā pēc tam, kad stājies spēkā Lauku atbalsta dienesta lēmums par projekta iesnieguma apstiprināšanu, bet ne vēlāk kā piecu darbdienu laikā pēc iepirkuma procedūras pabeigšanas.
A41: 2 Iepirkuma dokumentus, kas saistīti ar preces iegādi vai pakalpojumu (izņemot būvdarbus), var iesniegt kopā ar projekta iesniegumu vai sešu mēnešu laikā pēc tam, kad stājies spēkā Lauku atbalsta dienesta lēmums par projekta iesnieguma apstiprināšanu, bet ne vēlāk kā piecu darbdienu laikā pēc iepirkuma procedūras pabeigšanas.
A42: 3 Ja atbalsta saņemšanai izmanto rēķinu priekšapmaksu, iesniedz kopā ar rēķina priekšapmaksas pieprasījumu un iepirkuma dokumentiem, kas saistīti ar būvniecības izmaksām.
A43: 4 Saskaņā ar normatīvajiem aktiem par valsts un Eiropas Savienības atbalsta piešķiršanu, administrēšanu un uzraudzību lauku un zivsaimniecības attīstībai 2014.–2020. gada plānošanas periodā.
A44: 5 Var iesniegt sešu mēnešu laikā pēc tam, kad stājies spēkā Lauku atbalsta dienesta lēmums par projekta iesnieguma apstiprināšanu.
A45: 6 Var iesniegt deviņu mēnešu laikā pēc tam, kad stājies spēkā Lauku atbalsta dienesta lēmums par projekta iesnieguma apstiprināšanu.
B46: Projekta iesniegums iesniegts
H47: (datums*)
B49: Atbalsta pretendents
H50: (vārds, uzvārds, paraksts*)
A51: Piezīme.* Dokumenta rekvizītus "datums" un "paraksts" neaizpilda, ja dokuments ir sagatavots atbilstoši normatīvajiem aktiem par elektronisko dokumentu noformēšanu.

Sheet 1.pielikums
A1: Galvenās jomas*, kuras projekta īstenošanas rezultātā sekmēs mērķu sasniegšanu saistībā ar klimatu pārmaiņām:
A2: =1 -> 1 | B2: Atjaunojama enerģija: vējš
A3: =A2+1 -> 2 | B3: Atjaunojama enerģija: saule
A4: 3 | B4: Atjaunojama enerģija: biomasa
A5: 4 | B5: Cita atjaunojama enerģija (tostarp hidroelektroenerģija, ģeotermālā enerģija un jūras enerģija) un atjaunojamas enerģijas integrācija (tostarp uzglabāšana, strāva līdz gāzei un atjaunojamā ūdeņraža struktūra)
A6: 5 | B6: Publiskās infrastruktūras atjaunošana energoefektivitātes uzlabošanai, projektu demonstrēšana un atbalsta pasākumi
A7: 6 | B7: Esošu mājokļu atjaunošana energoefektivitātes uzlabošanai, projektu demonstrēšana un atbalsta pasākumi
A8: 7 | B8: Gudras enerģijas sadales sistēmas vidējos uz zemsprieguma līmeņos (tostarp viedtīkli un IKT sistēmas)
A9: 8 | B9: Augstas efektivitātes koģenerācija un centrālā apkure
A10: 9 | B10: Ūdens apsaimniekošana un dzeramā ūdens saglabāšana (tostarp upju baseinu apsaimniekošana, ūdens apgāde, konkrēti pasākumi, lai pielāgotos klimata pārmaiņām, rajonu un patērētāju patēriņa uzskaitīšana, iekasēšanas sistēmas un noplūdes mazināšana)
A11: 10 | B11: Vides pasākumi ar mērķi samazināt un/vai novērst siltumnīcefekta gāzu emisijas (tostarp metāna apstrāde un uzglabāšana un kompostēšana)
A12: 11 | B12: Iekšzemes ūdensceļi un ostas (reģionālas un vietējas nozīmes)
A13: 12 | B13: Tīra pilsētas transporta infrastruktūra un veicināšana (tostarp aprīkojums un ritošais sastāvs)
A14: 13 | B14: Inteliģentas transporta sistēmas (tostarp pieprasījuma vadības ieviešana, nodevu iekasēšanas sistēmas, IT uzraudzība, kontrole un informācija)
A15: 14 | B15: Pētniecības un inovācijas infrastruktūra, procesi, tehnoloģiju pārnese un sadarbība uzņēmumos, kas pievēršas zemu oglekļa emisiju ekonomikai un noturībai pret klimata pārmaiņām
A16: 15 | B16: Energoefektivitāte un projektu demonstrēšana MVU un atbalsta pasākumi
A17: 16 | B17: Atbalsts videi draudzīgiem ražošanas procesiem un resursu efektivitātei MVU
A18: 17 | B18: Energoefektivitātes veicināšana lielos uzņēmumos
A19: 18 | B19: Tādu uzņēmumu attīstība un veicināšana, kas specializējas pakalpojumu sniegšanā, kas sekmē zemu oglekļa emisiju ekonomiku un noturību pret klimata pārmaiņām (tostarp atbalsts šādiem pakalpojumiem)
A20: 19 | B20: Gaisa kvalitātes pasākumi
A21: 20 | B21: Piesārņojuma integrētā novēršana un kontrole (IPNK)
A22: 21 | B22: Bioloģiskās daudzveidības aizsardzība un spēcināšana, dabas aizsardzība un zaļā infrastruktūra
A23: 22 | B23: Natura 2000 teritoriju aizsardzība, atjaunošana un ilgtspējīga lietošana
A24: 23 | B24: Pasākumi saistībā ar pielāgošanos klimata pārmaiņām un ar klimatu saistīto risku (piemēram, erozijas, ugunsgrēku, plūdu, vētru un sausumu) profilakses un vadības pasākumi, tostarp izpratnes veidošana, civilā aizsardzība un katastrofu pārvarēšanas sistēmas un infrastruktūras
A25: 24 | B25: Velosipēdu celiņi un gājēju celiņi
B26: *KOMISIJAS ĪSTENOŠANAS REGULA (ES) Nr. 215/2014 (2014. gada 7. marts),ar kuru paredz noteikumus, kā īstenot Eiropas Parlamenta un Padomes Regulu (ES) Nr. 1303/2013, ar ko paredz kopīgus noteikumus par Eiropas Reģionālās attīstības fondu, Eiropas Sociālo fondu, Kohēzijas fondu, Eiropas Lauksaimniecības fondu lauku attīstībai un Eiropas Jūrlietu un zivsaimniecības fondu un vispārīgus noteikumus par Eiropas Reģionālās attīstības fondu, Eiropas Sociālo fondu, Kohēzijas fondu un Eiropas Jūrlietu un zivsaimniecības fondu, attiecībā uz metodoloģiju klimata pārmaiņu mērķu sasniegšanas atbalstam, starpposma mērķu un galamērķu noteikšanu darbības rezultātu satvarā un intervences kategoriju nomenklatūru Eiropas strukturālajiem un investīciju fondiem
